fUSD/lending_fUSD_20240119
["ID","MTS","AMOUNT","RATE_DAILY","PERIOD"]
[312159052,1705673463979,-820.35,0.00022465,2]
[312159053,1705673463988,-500.0,0.00022465,2]
[312159054,1705673463997,-500.0,0.00022465,2]
[312159055,1705673464007,-500.0,0.00022465,2]
[312159056,1705673464017,-500.0,0.00022465,2]
[312159057,1705673464026,-510.07,0.00022465,2]
[312159058,1705673464036,-500.0,0.00022465,2]
[312159059,1705673464046,-315.06488385,0.00022465,2]
[312159060,1705673464055,-500.0,0.00022465,2]
[312159061,1705673464064,-754.04,0.00022465,2]
[312159062,1705673464073,-500.0,0.00022465,2]
[312159063,1705673464082,-500.0,0.00022465,2]
[312159064,1705673464092,-511.07,0.00022465,2]
[312159065,1705673464102,-500.0,0.00022465,2]
[312159066,1705673464111,-500.0,0.00022465,2]
[312159067,1705673464120,-500.0,0.00022465,2]
[312159068,1705673464130,-518.44,0.00022465,2]
[312159069,1705673464139,-500.0,0.00022465,2]
[312159070,1705673464148,-500.0,0.00022465,2]
[312159071,1705673464158,-500.0,0.00022465,2]
[312159072,1705673464168,-500.0,0.00022465,2]
[312159073,1705673464177,-500.0,0.00022465,2]
[312159074,1705673464187,-500.0,0.00022465,2]
[312159075,1705673464196,-589.1,0.00022465,2]
[312159076,1705673464206,-500.0,0.00022465,2]
[312159077,1705673464216,-500.0,0.00022465,2]
[312159078,1705673464225,-500.0,0.00022465,2]
[312159079,1705673464234,-500.0,0.00022465,2]
[312159080,1705673464243,-500.0,0.00022465,2]
[312159081,1705673464253,-500.0,0.00022465,2]
[312159082,1705673464263,-500.0,0.00022465,2]
[312159083,1705673464273,-500.0,0.00022465,2]
[312159084,1705673464283,-666.14,0.00022465,2]
[312159085,1705673464292,-500.0,0.00022465,2]
[312159086,1705673464303,-500.0,0.00022465,2]
[312159087,1705673464312,-562.68,0.00022465,2]
[312159088,1705673464322,-500.0,0.00022465,2]
[312159089,1705673464331,-546.02,0.00022465,2]
[312159090,1705673464341,-500.0,0.00022465,2]
[312159091,1705673464353,-500.0,0.00022465,2]
[312159092,1705673464363,-655.18,0.00022465,2]
[312159093,1705673464375,-500.0,0.00022465,2]
[312159094,1705673464385,-500.0,0.00022465,2]
[312159095,1705673464395,-709.92,0.00022465,2]
[312159096,1705673464405,-1404.49,0.00022465,2]
[312159097,1705673464415,-529.25,0.00022465,2]
[312159098,1705673464425,-528.18628902,0.00022465,2]
[312159099,1705673464435,-500.0,0.00022465,2]
[312159100,1705673464444,-654.1,0.00022465,2]
[312159101,1705673464454,-500.0,0.00022465,2]
[312159102,1705673464465,-500.0,0.00022465,2]
[312159103,1705673464475,-798.95,0.00022465,2]
[312159104,1705673464485,-500.0,0.00022465,2]
[312159105,1705673464495,-500.0,0.00022465,2]
[312159106,1705673464506,-783.69,0.00022465,2]
[312159107,1705673464517,-535.12575971,0.00022465,2]
[312159108,1705673464528,-500.0,0.00022465,2]
[312159109,1705673464537,-500.0,0.00022465,2]
[312159110,1705673464547,-500.0,0.00022465,2]
[312159111,1705673464556,-500.0,0.00022465,2]
[312159112,1705673464566,-500.0,0.00022465,2]
[312159113,1705673464575,-500.0,0.00022465,2]
[312159114,1705673464585,-500.0,0.00022465,2]
[312159115,1705673464595,-625.32,0.00022465,2]
[312159116,1705673464605,-578.96,0.00022465,2]
[312159117,1705673464615,-500.0,0.00022465,2]
[312159118,1705673464625,-607.51,0.00022465,2]
[312159119,1705673464634,-500.0,0.00022465,2]
[312159120,1705673464644,-306.64,0.00022465,2]
[312159121,1705673464654,-593.03,0.00022465,2]
[312159122,1705673464664,-500.0,0.00022465,2]
[312159123,1705673464674,-500.0,0.00022465,2]
[312159124,1705673464684,-500.0,0.00022465,2]
[312159125,1705673464694,-500.0,0.00022465,2]
[312159126,1705673464704,-666.9,0.00022465,2]
[312159127,1705673464714,-500.0,0.00022465,2]
[312159128,1705673464723,-500.0,0.00022465,2]
[312159129,1705673464733,-758.23,0.00022465,2]
[312159130,1705673464744,-500.0,0.00022465,2]
[312159131,1705673464755,-1317.87,0.00022465,2]
[312159132,1705673464765,-500.0,0.00022465,2]
[312159133,1705673464776,-500.0,0.00022465,2]
[312159134,1705673464786,-500.0,0.00022465,2]
[312159135,1705673464796,-500.0,0.00022465,2]
[312159136,1705673464805,-853.68,0.00022465,2]
[312159137,1705673464815,-808.3,0.00022465,2]
[312159138,1705673464824,-538.99,0.00022465,2]
[312159139,1705673464835,-594.66,0.00022465,2]
[312159140,1705673464845,-500.0,0.00022465,2]
[312159141,1705673464854,-500.0,0.00022465,2]
[312159142,1705673464864,-506.33,0.00022465,2]
[312159143,1705673464874,-569.14,0.00022465,2]
[312159144,1705673464884,-500.0,0.00022465,2]
[312159145,1705673464894,-612.17,0.00022465,2]
[312159146,1705673464904,-620.6,0.00022465,2]
[312159147,1705673464914,-500.0,0.00022465,2]
[312159148,1705673464924,-500.0,0.00022465,2]
[312159149,1705673464934,-937.02,0.00022465,2]
[312159150,1705673464944,-500.0,0.00022465,2]
[312159151,1705673464954,-500.0,0.00022465,2]
[312159152,1705673465077,-500.0,0.00022465,2]
[312159153,1705673465150,-500.0,0.00022465,2]
[312159154,1705673465160,-500.0,0.00022465,2]
[312159155,1705673465171,-500.0,0.00022465,2]
[312159156,1705673465182,-500.0,0.00022465,2]
[312159157,1705673465193,-959.95,0.00022465,2]
[312159158,1705673465203,-500.0,0.00022465,2]
[312159159,1705673465213,-500.0,0.00022465,2]
[312159160,1705673465224,-500.0,0.00022465,2]
[312159161,1705673465235,-394.5953577,0.00022465,2]
[312159162,1705673465245,-500.0,0.00022465,2]
[312159163,1705673465255,-540.11,0.00022465,2]
[312159164,1705673465265,-500.0,0.00022465,2]
[312159165,1705673465275,-680.59,0.00022465,2]
[312159166,1705673465285,-638.58,0.00022465,2]
[312159167,1705673465295,-1070.56,0.00022465,2]
[312159168,1705673465306,-585.22,0.00022465,2]
[312159169,1705673465316,-262.81,0.00022465,2]
[312159170,1705673465326,-500.0,0.00022465,2]
[312159171,1705673465337,-504.22,0.00022465,2]
[312159172,1705673465348,-580.86,0.00022465,2]
[312159173,1705673465358,-500.0,0.00022465,2]
[312159174,1705673465369,-500.0,0.00022465,2]
[312159175,1705673465380,-822.62,0.00022465,2]
[312159176,1705673465390,-657.24,0.00022465,2]
[312159177,1705673465400,-512.11,0.00022465,2]
[312159178,1705673465411,-693.99,0.00022465,2]
[312159179,1705673465422,-593.69,0.00022465,2]
[312159180,1705673465433,-500.0,0.00022465,2]
[312159181,1705673465443,-500.0,0.00022465,2]
[312159182,1705673465454,-687.88,0.00022465,2]
[312159183,1705673465464,-500.0,0.00022465,2]
[312159184,1705673465475,-556.87,0.00022465,2]
[312159185,1705673465486,-551.51,0.00022465,2]
[312159186,1705673465498,-381.42827326,0.00022465,2]
[312159187,1705673465508,-998.3,0.00022465,2]
[312159188,1705673465519,-563.03,0.00022465,2]
[312159189,1705673465530,-500.0,0.00022465,2]
[312159190,1705673465540,-510.07,0.00022465,2]
[312159191,1705673465551,-500.0,0.00022465,2]
[312159192,1705673465561,-519.38,0.00022465,2]
[312159193,1705673465571,-725.85,0.00022465,2]
[312159194,1705673465582,-553.34,0.00022465,2]
[312159195,1705673465592,-911.68,0.00022465,2]
[312159196,1705673465603,-500.0,0.00022465,2]
[312159197,1705673465614,-500.0,0.00022465,2]
[312159198,1705673465625,-500.0,0.00022465,2]
[312159199,1705673465636,-500.0,0.00022465,2]
[312159200,1705673465646,-500.0,0.00022465,2]
[312159201,1705673465657,-500.0,0.00022465,2]
[312159202,1705673465667,-559.78,0.00022465,2]
[312159203,1705673465678,-500.0,0.00022465,2]
[312159204,1705673465688,-777.78,0.00022465,2]
[312159205,1705673465698,-655.17,0.00022465,2]
[312159206,1705673465708,-500.0,0.00022465,2]
[312159207,1705673465719,-500.0,0.00022465,2]
[312159208,1705673465729,-500.0,0.00022465,2]
[312159209,1705673465740,-500.0,0.00022465,2]
[312159210,1705673465750,-500.0,0.00022465,2]
[312159211,1705673465761,-686.7,0.00022465,2]
[312159212,1705673465771,-672.72,0.00022465,2]
[312159213,1705673465782,-500.0,0.00022465,2]
[312159214,1705673465792,-500.0,0.00022465,2]
[312159215,1705673465802,-556.02051237,0.00022465,2]
[312159216,1705673465813,-500.0,0.00022465,2]
[312159217,1705673465823,-500.0,0.00022465,2]
[312159218,1705673465834,-500.0,0.00022465,2]
[312159219,1705673465844,-500.0,0.00022465,2]
[312159220,1705673465854,-614.37488692,0.00022465,2]
[312159221,1705673465865,-489.94051026,0.00022465,2]
[312159222,1705673465875,-500.0,0.00022465,2]
[312159223,1705673465886,-500.0,0.00022465,2]
[312159224,1705673465896,-773.68,0.00022465,2]
[312159225,1705673465906,-640.27,0.00022465,2]
[312159226,1705673465916,-1000.0,0.00022465,2]
[312159227,1705673465927,-500.0,0.00022465,2]
[312159228,1705673465937,-500.0,0.00022465,2]
[312159229,1705673465948,-651.74,0.00022465,2]
[312159230,1705673465961,-500.0,0.00022465,2]
[312159231,1705673465971,-935.11,0.00022465,2]
[312159232,1705673465981,-654.84,0.00022465,2]
[312159233,1705673465991,-519.36,0.00022465,2]
[312159234,1705673466002,-720.11,0.00022465,2]
[312159235,1705673466012,-500.0,0.00022465,2]
[312159236,1705673466022,-639.3,0.00022465,2]
[312159237,1705673466033,-500.0,0.00022465,2]
[312159238,1705673466044,-500.0,0.00022465,2]
[312159239,1705673466054,-877.14,0.00022465,2]
[312159240,1705673466065,-619.18,0.00022465,2]
[312159241,1705673466076,-500.0,0.00022465,2]
[312159242,1705673466086,-219.41433553,0.00022465,2]
[312159243,1705673466097,-500.0,0.00022465,2]
[312159244,1705673466107,-1414.25,0.00022465,2]
[312159245,1705673466117,-500.0,0.00022465,2]
[312159246,1705673466127,-500.0,0.00022465,2]
[312159247,1705673466138,-500.0,0.00022465,2]
[312159248,1705673466149,-569.8,0.00022465,2]
[312159249,1705673466159,-500.0,0.00022465,2]
[312159250,1705673466169,-500.0,0.00022465,2]
[312159251,1705673466179,-500.0,0.00022465,2]
[312159252,1705673466189,-629.53,0.00022465,2]
[312159253,1705673466199,-314.72916891,0.00022465,2]
[312159254,1705673466209,-500.0,0.00022465,2]
[312159255,1705673466219,-500.0,0.00022465,2]
[312159256,1705673466230,-500.0,0.00022465,2]
[312159257,1705673466242,-762.44,0.00022465,2]
[312159258,1705673466252,-500.0,0.00022465,2]
[312159259,1705673466262,-500.0,0.00022465,2]
[312159260,1705673466272,-500.0,0.00022465,2]
[312159261,1705673466282,-500.0,0.00022465,2]
[312159262,1705673466293,-500.0,0.00022465,2]
[312159263,1705673466303,-500.0,0.00022465,2]
[312159264,1705673466313,-554.49,0.00022465,2]
[312159265,1705673466323,-1141.46,0.00022465,2]
[312159266,1705673466333,-500.0,0.00022465,2]
[312159267,1705673466344,-500.0,0.00022465,2]
[312159268,1705673466354,-529.81127314,0.00022465,2]
[312159269,1705673466365,-525.62,0.00022465,2]
[312159270,1705673466375,-500.0,0.00022465,2]
[312159271,1705673466385,-500.0,0.00022465,2]
[312159272,1705673466395,-500.0,0.00022465,2]
[312159273,1705673466405,-763.55,0.00022465,2]
[312159274,1705673466415,-513.63,0.00022465,2]
[312159275,1705673466425,-500.0,0.00022465,2]
[312159276,1705673466436,-500.0,0.00022465,2]
[312159277,1705673466446,-556.41,0.00022465,2]
[312159278,1705673466456,-1171.7,0.00022465,2]
[312159279,1705673466467,-500.0,0.00022465,2]
[312159280,1705673466477,-500.0,0.00022465,2]
[312159281,1705673466488,-517.8018221,0.00022465,2]
[312159282,1705673466498,-885.53,0.00022465,2]
[312159283,1705673466509,-500.0,0.00022465,2]
[312159284,1705673466519,-500.0,0.00022465,2]
[312159285,1705673466530,-500.0,0.00022465,2]
[312159286,1705673466540,-976.37,0.00022465,2]
[312159287,1705673466551,-578.45,0.00022465,2]
[312159288,1705673466561,-502.23,0.00022465,2]
[312159289,1705673466571,-500.0,0.00022465,2]
[312159290,1705673466581,-732.76,0.00022465,2]
[312159291,1705673466591,-500.0,0.00022465,2]
[312159292,1705673466602,-665.65,0.00022465,2]
[312159293,1705673466612,-973.75,0.00022465,2]
[312159294,1705673466623,-610.78,0.00022465,2]
[312159295,1705673466633,-559.87,0.00022465,2]
[312159296,1705673466644,-500.0,0.00022465,2]
[312159297,1705673466654,-510.16584487,0.00022465,2]
[312159298,1705673466664,-500.0,0.00022465,2]
[312159299,1705673466675,-500.0,0.00022465,7]
[312159300,1705673466685,-1003.58,0.00022465,2]
[312159301,1705673466695,-753.45,0.00022465,2]
[312159302,1705673466706,-500.0,0.00022465,2]
[312159303,1705673466716,-1149.83,0.00022465,2]
[312159304,1705673466726,-500.0,0.00022465,2]
[312159305,1705673466737,-752.88,0.00022465,2]
[312159306,1705673466747,-300.0,0.00022465,2]
[312159307,1705673466758,-956.88,0.00022465,2]
[312159308,1705673466768,-500.0,0.00022465,2]
[312159309,1705673466778,-957.43,0.00022465,2]
[312159310,1705673466788,-500.0,0.00022465,2]
[312159311,1705673466799,-500.0,0.00022465,2]
[312159312,1705673466808,-646.27,0.00022465,2]
[312159313,1705673466818,-500.0,0.00022465,2]
[312159314,1705673466828,-500.0,0.00022465,2]
[312159315,1705673466838,-509.82,0.00022465,2]
[312159316,1705673466848,-500.0,0.00022465,2]
[312159317,1705673466858,-500.0,0.00022465,2]
[312159318,1705673466869,-500.0,0.00022465,2]
[312159319,1705673466878,-500.0,0.00022465,2]
[312159320,1705673466888,-500.0,0.00022465,2]
[312159321,1705673466898,-943.39,0.00022465,2]
[312159322,1705673466908,-907.64,0.00022465,2]
[312159323,1705673466918,-500.0,0.00022465,2]
[312159324,1705673466928,-944.84,0.00022465,2]
[312159325,1705673466938,-500.0,0.00022465,2]
[312159326,1705673466947,-1129.76,0.00022465,2]
[312159327,1705673466960,-731.48,0.00022465,2]
[312159328,1705673466970,-585.09,0.00022465,2]
[312159329,1705673466980,-610.8,0.00022465,2]
[312159330,1705673466989,-500.0,0.00022465,2]
[312159331,1705673467000,-1053.71,0.00022465,2]
[312159332,1705673467011,-500.0,0.00022465,2]
[312159333,1705673467021,-500.0,0.00022465,2]
[312159334,1705673467031,-1183.46,0.00022465,2]
[312159335,1705673467042,-839.97,0.00022465,2]
[312159336,1705673467052,-500.0,0.00022465,2]
[312159337,1705673467063,-710.72,0.00022465,2]
[312159338,1705673467072,-500.0,0.00022465,2]
[312159339,1705673467083,-2404.65,0.00022465,2]
[312159340,1705673467093,-1106.07,0.00022465,2]
[312159341,1705673467103,-500.0,0.00022465,2]
[312159342,1705673467113,-635.55,0.00022465,2]
[312159343,1705673467124,-500.0,0.00022465,2]
[312159344,1705673467133,-733.79,0.00022465,2]
[312159345,1705673467144,-500.0,0.00022465,2]
[312159346,1705673467154,-500.0,0.00022465,2]
[312159347,1705673467164,-500.0,0.00022465,2]
[312159348,1705673467175,-2138.94,0.00022465,2]
[312159349,1705673467185,-590.44,0.00022465,2]
[312159350,1705673467195,-500.0,0.00022465,2]
[312159351,1705673467205,-1204.52,0.00022465,2]
[312159352,1705673467216,-500.0,0.00022465,2]
[312159353,1705673467226,-500.0,0.00022465,2]
[312159354,1705673467237,-1015.21,0.00022465,2]
[312159355,1705673467247,-500.0,0.00022465,2]
[312159356,1705673467258,-500.0,0.00022465,2]
[312159357,1705673467268,-500.0,0.00022465,2]
[312159358,1705673467279,-500.0,0.00022465,2]
[312159359,1705673467290,-964.03,0.00022465,2]
[312159360,1705673467300,-838.2,0.00022465,2]
[312159361,1705673467311,-500.0,0.00022465,2]
[312159362,1705673467322,-887.74,0.00022465,2]
[312159363,1705673467333,-500.0,0.00022465,2]
[312159364,1705673467343,-594.81,0.00022465,2]
[312159365,1705673467354,-500.0,0.00022465,2]
[312159366,1705673467365,-500.0,0.00022465,2]
[312159367,1705673467375,-500.0,0.00022465,2]
[312159368,1705673467386,-500.0,0.00022465,2]
[312159369,1705673467396,-661.64,0.00022465,2]
[312159370,1705673467407,-515.55,0.00022465,2]
[312159371,1705673467430,-500.0,0.00022465,2]
[312159372,1705673467442,-651.67,0.00022465,2]
[312159373,1705673467452,-884.36,0.00022465,2]
[312159374,1705673467464,-500.0,0.00022465,2]
[312159375,1705673467474,-731.43,0.00022465,2]
[312159376,1705673467484,-612.55,0.00022465,2]
[312159377,1705673467495,-500.0,0.00022465,2]
[312159378,1705673467507,-500.0,0.00022465,2]
[312159379,1705673467518,-775.08,0.00022465,2]
[312159380,1705673467529,-233.72354621,0.00022465,2]
[312159381,1705673467540,-500.0,0.00022465,2]
[312159382,1705673467551,-500.0,0.00022465,2]
[312159383,1705673467562,-957.4,0.00022465,2]
[312159384,1705673467576,-500.0,0.00022465,2]
[312159385,1705673468027,-500.0,0.00022465,2]
[312159386,1705673468054,-1134.65,0.00022465,2]
[312159387,1705673468065,-676.39,0.00022465,2]
[312159388,1705673468075,-664.19,0.00022465,2]
[312159389,1705673468085,-500.0,0.00022465,2]
[312159390,1705673468095,-500.0,0.00022465,2]
[312159391,1705673468105,-500.0,0.00022465,2]
[312159392,1705673468115,-500.0,0.00022465,2]
[312159393,1705673468125,-500.0,0.00022465,2]
[312159394,1705673468135,-2109.06,0.00022465,2]
[312159395,1705673468146,-807.1,0.00022465,2]
[312159396,1705673468156,-1000.89,0.00022465,2]
[312159397,1705673468167,-500.0,0.00022465,2]
[312159398,1705673468177,-500.0,0.00022465,2]
[312159399,1705673468187,-564.8,0.00022465,2]
[312159400,1705673468197,-1172.19,0.00022465,2]
[312159401,1705673468207,-500.0,0.00022465,2]
[312159402,1705673468218,-500.0,0.00022465,2]
[312159403,1705673468228,-500.0,0.00022465,2]
[312159404,1705673468239,-500.0,0.00022465,2]
[312159405,1705673468250,-500.0,0.00022465,2]
[312159406,1705673468261,-1654.9,0.00022465,2]
[312159407,1705673468271,-3245.13,0.00022465,2]
[312159408,1705673468286,-500.0,0.00022465,2]
[312159409,1705673468296,-639.63,0.00022465,2]
[312159410,1705673468308,-500.0,0.00022465,2]
[312159411,1705673468319,-922.33,0.00022465,2]
[312159412,1705673468330,-1467.01,0.00022465,2]
[312159413,1705673468340,-500.0,0.00022465,2]
[312159414,1705673468351,-851.34,0.00022465,2]
[312159415,1705673468362,-944.72,0.00022465,2]
[312159416,1705673468373,-500.0,0.00022465,2]
[312159417,1705673468384,-500.0,0.00022465,2]
[312159418,1705673468395,-6358.64,0.00022465,2]
[312159419,1705673468406,-1277.86,0.00022465,2]
[312159420,1705673468417,-228.39,0.00022465,2]
[312159421,1705673468428,-500.0,0.00022465,2]
[312159422,1705673468439,-500.0,0.00022465,2]
[312159423,1705673468451,-212.20001938,0.00022465,2]
[312159424,1705673468461,-500.0,0.00022465,2]
[312159425,1705673468472,-500.0,0.00022465,2]
[312159426,1705673468483,-500.0,0.00022465,2]
[312159427,1705673468494,-1787.47,0.00022465,2]
[312159428,1705673468506,-1723.42,0.00022465,2]
[312159429,1705673468517,-766.66,0.00022465,2]
[312159430,1705673468528,-860.57,0.00022465,2]
[312159431,1705673468539,-500.0,0.00022465,2]
[312159432,1705673468550,-1489.45,0.00022465,2]
[312159433,1705673468561,-1260.89,0.00022465,2]
[312159434,1705673468571,-1636.94,0.00022465,2]
[312159435,1705673468582,-1741.96,0.00022465,2]
[312159436,1705673468593,-500.0,0.00022465,2]
[312159437,1705673468603,-2437.39,0.00022465,2]
[312159438,1705673468614,-2607.51,0.00022465,2]
[312159439,1705673468629,-500.0,0.00022465,2]
[312159440,1705673468645,-500.0,0.00022465,2]
[312159441,1705673468660,-500.0,0.00022465,2]
[312159442,1705673468683,-500.0,0.00022465,2]
[312159443,1705673468695,-500.0,0.00022465,2]
[312159444,1705673468710,-2618.51,0.00022465,2]
[312159445,1705673468726,-500.0,0.00022465,2]
[312159446,1705673468748,-953.38,0.00022465,2]
[312159447,1705673468760,-500.0,0.00022465,2]
[312159448,1705673468771,-1368.1,0.00022465,2]
[312159449,1705673468781,-538.17,0.00022465,2]
[312159450,1705673468792,-500.0,0.00022465,2]
[312159451,1705673468802,-188.25758341,0.00022465,2]
[312159452,1705673468813,-500.0,0.00022465,2]
[312159453,1705673468823,-6032.42,0.00022465,2]
[312159454,1705673468834,-962.32,0.00022465,2]
[312159455,1705673468845,-500.0,0.00022465,2]
[312159456,1705673468856,-4068.53,0.00022465,2]
[312159457,1705673468866,-500.0,0.00022465,2]
[312159458,1705673468878,-1049.77,0.00022465,2]
[312159459,1705673468888,-500.0,0.00022465,2]
[312159460,1705673468899,-8327.73,0.00022465,2]
[312159461,1705673468910,-649.47,0.00022465,2]
[312159462,1705673468920,-624.28,0.00022465,2]
[312159463,1705673468930,-500.0,0.00022465,2]
[312159464,1705673468941,-500.0,0.00022465,2]
[312159465,1705673468952,-500.0,0.00022465,2]
[312159466,1705673468965,-1850.3,0.00022465,2]
[312159467,1705673468975,-605.41,0.00022465,2]
[312159468,1705673468985,-2352.46,0.00022465,2]
[312159469,1705673468995,-3311.03,0.00022465,2]
[312159470,1705673469007,-500.0,0.00022465,2]
[312159471,1705673469018,-903.29,0.00022465,2]
[312159472,1705673469029,-500.0,0.00022465,2]
[312159473,1705673469039,-10438.87,0.00022465,2]
[312159474,1705673469051,-792.08,0.00022465,2]
[312159475,1705673469062,-500.0,0.00022465,2]
[312159476,1705673469073,-3188.18,0.00022465,2]
[312159477,1705673469084,-1563.62,0.00022465,2]
[312159478,1705673469095,-500.0,0.00022465,2]
[312159479,1705673469106,-1823.52,0.00022465,2]
[312159480,1705673469116,-979.74,0.00022465,2]
[312159481,1705673469127,-500.0,0.00022465,2]
[312159482,1705673469137,-5071.79,0.00022465,2]
[312159483,1705673469147,-500.0,0.00022465,2]
[312159484,1705673469158,-500.0,0.00022465,2]
[312159485,1705673469169,-500.0,0.00022465,2]
[312159486,1705673469182,-500.0,0.00022465,2]
[312159487,1705673469192,-500.0,0.00022465,2]
[312159488,1705673469203,-500.0,0.00022465,2]
[312159489,1705673469214,-1002.48,0.00022465,2]
[312159490,1705673469224,-622.94,0.00022465,2]
[312159491,1705673469235,-15723.86746441,0.00022465,2]
[312159492,1705673469959,-6345.99253559,0.00022465,2]
[312159493,1705673469971,-389.32454685,0.00022465,2]
[312159494,1705673469982,-1591.98,0.00022465,2]
[312159495,1705673469993,-2328.9,0.00022465,2]
[312159496,1705673470004,-500.0,0.00022465,2]
[312159497,1705673470016,-2961.89,0.00022465,2]
[312159498,1705673470027,-1489.79,0.00022465,2]
[312159499,1705673470040,-500.0,0.00022465,2]
[312159500,1705673470051,-781.85,0.00022465,2]
[312159501,1705673470062,-819.93,0.00022465,2]
[312159502,1705673470073,-500.0,0.00022465,2]
[312159503,1705673470084,-1080.74,0.00022465,2]
[312159504,1705673470095,-3804.56,0.00022465,2]
[312159505,1705673470105,-619.37,0.00022465,2]
[312159506,1705673470117,-500.0,0.00022465,2]
[312159507,1705673470128,-1768.38,0.00022465,2]
[312159508,1705673470138,-500.0,0.00022465,2]
[312159509,1705673470150,-500.0,0.00022465,2]
[312159510,1705673470161,-626.56,0.00022465,2]
[312159511,1705673470172,-500.0,0.00022465,2]
[312159512,1705673470183,-806.76,0.00022465,2]
[312159513,1705673470195,-500.0,0.00022465,2]
[312159514,1705673470207,-1316.84,0.00022465,2]
[312159515,1705673470218,-500.0,0.00022465,2]
[312159516,1705673470230,-2168.42,0.00022465,2]
[312159517,1705673470242,-519.15,0.00022465,2]
[312159518,1705673470254,-1425.21,0.00022465,2]
[312159519,1705673470265,-500.0,0.00022465,2]
[312159520,1705673470276,-500.0,0.00022465,2]
[312159521,1705673470286,-500.0,0.00022465,2]
[312159522,1705673470297,-4540.10822458,0.00022465,2]
[312159523,1705673470317,-11653.23177542,0.00022465,2]
[312159524,1705673470328,-547.5,0.00022465,2]
[312159525,1705673470339,-581.4955638,0.00022465,2]
[312159526,1705673470350,-860.33,0.00022465,2]
[312159527,1705673470360,-253.8387937,0.00022465,2]
[312159528,1705673470370,-827.34,0.00022465,2]
[312159529,1705673470382,-2206.42,0.00022465,2]
[312159530,1705673470393,-2502.13,0.00022465,2]
[312159531,1705673470404,-2161.74,0.00022465,2]
[312159532,1705673470417,-500.0,0.00022465,2]
[312159533,1705673470428,-500.0,0.00022465,2]
[312159534,1705673470440,-1405.64,0.00022465,2]
[312159535,1705673470452,-5665.06,0.00022465,2]
[312159536,1705673470462,-500.0,0.00022465,2]
[312159537,1705673470474,-646.02,0.00022465,2]
[312159538,1705673470485,-500.0,0.00022465,2]
[312159539,1705673470497,-941.69,0.00022465,2]
[312159540,1705673470509,-1186.21,0.00022465,2]
[312159541,1705673470521,-3031.73,0.00022465,2]
[312159542,1705673470532,-500.0,0.00022465,2]
[312159543,1705673470543,-500.0,0.00022465,2]
[312159544,1705673470555,-996.35,0.00022465,2]
[312159545,1705673470567,-500.0,0.00022465,2]
[312159546,1705673470578,-908.02,0.00022465,2]
[312159547,1705673470589,-500.0,0.00022465,2]
[312159548,1705673470601,-1386.07,0.00022465,2]
[312159549,1705673470612,-909.18386708,0.00022465,2]
[312159550,1705673470626,-978.64808177,0.00022465,2]
[312159551,1705673470648,-361.57313903,0.00022465,2]